Cogmind - Beta 16.1 @@@ ROGUE MODE // 2026.02.20 @ 14:30:43 Player: Anting Result: Self-destructed Performance ------------- Evolutions (3) 1500 Regions Visited (8) 1600 Robots Destroyed (133) 665 Value Destroyed (3515) 3515 Prototype IDs (19) 380 Alien Tech Used (0) 0 Bonus (119) 119 TOTAL SCORE: 7779 Bonus ------- High Alert Combat Kills 119 Cogmind --------- Core Integrity 659/700 Matter 300/300 Energy 140/140 System Corruption 1% Temperature Cool (0) Movement Flying (184) Ox2 Location -7/Factory Parts ------- > --- POWER (1) -------- Light Deuterium Engine > --- PROPULSION (4) --- Improved Flight Unit Cesium-ion Thruster > --- UTILITY (6) ------ Medium Storage Unit Improved Sensor Array Improved Signal Interpreter Hacking Suite Hacking Suite Improved Trap Extractor (1/6 Shock) > --- WEAPON (2) ------- Great Axe > --- INVENTORY (10) --- Light Deuterium Engine Improved Light Armor Plating Improved Medium Armor Plating Authchip [Propulsion] Authchip [Propulsion] Authchip [Propulsion] Authchip [Propulsion] Missile Launcher Improved Datajack Powered Hammer Peak State ------------ > --- POWER ------------ Light Deuterium Engine > --- PROPULSION ------- Improved Flight Unit Improved Flight Unit Cesium-ion Thruster Cesium-ion Thruster > --- UTILITY ---------- Medium Storage Unit Improved Sensor Array Improved Signal Interpreter Improved Melee Analysis Suite Improved Light Armor Plating Hacking Suite > --- WEAPON ----------- Precision Assault Rifle Powered Hammer > --- INVENTORY -------- Light Deuterium Engine Improved Medium Armor Plating Improved Medium Armor Plating Hacking Suite Authchip [Propulsion] Authchip [Propulsion] Improved Trap Extractor Enhanced Autogun Rocket Launcher Improved Datajack [Rating: 44] Favorites ----------- Power Ion Engine Engine Ion Engine Power Core Light Nuclear Core Propulsion Light Treads Treads Light Treads Leg Aluminum Leg Flight Unit Cesium-ion Thruster Utility High-capacity Storage Unit Device Seismic Detector Storage High-capacity Storage Unit Processor Improved Signal Interpreter Hackware Hacking Suite Protection Hardened Medium Armor Plating Weapon Improved Assault Rifle Energy Gun EM Shotgun Ballistic Gun Improved Assault Rifle Launcher Rocket Launcher Impact Weapon Power Maul Slashing Weapon Great Axe Special Melee Weapon Datajack Build | -11 -10 -10 -9 -9 -9 -8 -8 -7 ------- Run | Yrd Mat Min Mat Min Exi Min Mat Fac Slots Evolved 6 | . . . 2 . . . 2 2 Power . | . . . . . . . . . Propulsion 2 | . . . 1 . . . 1 . Utility 4 | . . . 1 . . . 1 2 Weapon . | . . . . . . . . . Parts Attached 95 | 8 7 7 17 5 3 7 20 21 Power 13 | 2 . 1 3 . . 1 6 . Engine 10 | 2 . 1 3 . . . 4 . Core 3 | . . . . . . 1 2 . Reactor . | . . . . . . . . . Propulsion 30 | 2 2 2 6 4 . 3 7 4 Treads 19 | . . . 6 3 . 3 7 . Leg 6 | 2 2 2 . . . . . . Wheel . | . . . . . . . . . Hover . | . . . . . . . . . Flight 5 | . . . . 1 . . . 4 Utility 28 | 2 2 2 2 1 1 2 4 12 Device 12 | 1 1 2 1 1 . 2 1 3 Storage 4 | 1 1 . . . . . 1 1 Processor 4 | . . . . . . . . 4 Hackware 2 | . . . . . . . . 2 Protection 6 | . . . 1 . 1 . 2 2 Artifact . | . . . . . . . . . Weapon 24 | 2 3 2 6 . 2 1 3 5 Energy Gun 6 | 1 2 2 1 . . . . . Energy Cannon . | . . . . . . . . . Ballistic Gun 12 | 1 1 . 5 . 1 . 3 1 Ballistic Cannon . | . . . . . . . . . Launcher 1 | . . . . . . 1 . . Special Weapon . | . . . . . . . . . Impact Weapon 2 | . . . . . . . . 2 Slashing Weapon 1 | . . . . . . . . 1 Piercing Weapon . | . . . . . . . . . Special Melee Weapon 2 | . . . . . 1 . . 1 Unidentified Prototypes 5 | . . . 4 . . . . 1 Parts Lost 27 | . . 5 7 2 . 5 6 2 Power 3 | . . . 1 . . 1 1 . Propulsion 11 | . . 3 2 1 . 2 1 2 Utility 6 | . . . . 1 . 2 3 . Weapon 7 | . . 2 4 . . . 1 . Highest Loss Streak 5 | . . 5 5 1 . 3 2 2 To Critical Strikes . | . . . . . . . . . Average Backups 17 | 2 13 18 18 19 17 19 19 8 Power . | . 1 1 . . . . 1 . Propulsion 5 | 1 4 4 5 6 5 6 7 . Utility 5 | . 3 4 5 6 4 6 6 5 Weapon 5 | . 4 8 7 6 6 5 4 2 Tool/Special . | . . . . . . . . . Unused Backups 24 | . . . 3 . 3 1 4 13 Power 4 | . . . . . 3 . . 1 Propulsion 4 | . . . . . . . 2 2 Utility 10 | . . . . . . 1 1 8 Weapon 6 | . . . 3 . . . 1 2 Tool/Special . | . . . . . . . . . Average Slot Usage (%) 97 | . 100 96 97 99 88 97 99 92 Engine 8 | . 14 14 10 11 11 1 4 7 Core 2 | . . . . . . 9 4 . Treads 21 | . . . 26 32 33 32 35 . Leg 7 | . 28 24 5 . . . . . Flight 2 | . . . . . . . . 29 Device 12 | . 14 14 15 10 11 9 12 8 Storage 10 | . 14 14 11 11 11 11 9 5 Processor 1 | . . . . . . . . 12 Hackware 1 | . . . . . . . . 10 Protection 8 | . . . 5 11 11 11 14 5 Energy Gun 3 | . 10 12 . . . . . . Ballistic Gun 15 | . 17 15 20 22 2 21 17 1 Peak Build Rating 44 | 7 11 11 24 26 22 25 32 44 Average Rating 22 | 4 9 10 18 22 16 23 28 37 On Entrance 16 | . 7 11 10 24 21 21 25 29 Avg Prop Armor Cover (%) 10 | . . . 10 . . . . . Naked Turns . | . . . . . . . . . Heaviest Build 78 | 13 52 52 63 63 63 63 78 26 Greatest Support 80 | 20 20 20 63 63 60 60 80 23 Greatest Overweight (x) 5 | 1 2 5 2 1 1 1 . 1 Average Overweight (x) . | . 1 2 . . . . . . Largest Inventory Capacity 20 | 8 20 20 20 20 20 20 20 20 Average Capacity 18 | 7 18 20 20 20 20 20 20 9 Most Carried 20 | 5 20 20 20 20 20 20 20 20 Average Carried 17 | 3 14 18 18 19 17 19 19 8 Final Capacity 20 | 8 20 20 20 20 20 20 20 10 Final Carried 20 | 5 20 20 20 20 20 20 20 10 Class Distribution -------------------- 58% | Scavenger-Mutant 32% | Mutant 4% | Sprinter Dominant Class ---------------- Mutant | -10/Materials Scavenger-Mutant | -10/Mines Mutant | -9/Materials Mutant | -9/Mines Scavenger-Mutant | -9/Exiles Scavenger-Mutant | -8/Mines Scavenger-Mutant | -8/Materials Sprinter | -7/Factory Resources | -11 -10 -10 -9 -9 -9 -8 -8 -7 ----------- Run | Yrd Mat Min Mat Min Exi Min Mat Fac Matter Collected 3520 | 228 492 105 551 228 65 347 956 548 Remotely . | . . . . . . . . . Salvage Created 4760 | 33 618 215 929 477 . 514 1626 348 Parts 284 | 5 41 18 65 22 . 27 88 18 Haulers Intercepted 9 | . 1 . 3 . . . 3 2 Recyclers Shooed 3 | . 1 . 2 . . . . . Parts Field Recycled . | . . . . . . . . . Retrieved Matter . | . . . . . . . . . Parts Self-Destructed . | . . . . . . . . . Prevented . | . . . . . . . . . Parts Restored . | . . . . . . . . . Kills | -11 -10 -10 -9 -9 -9 -8 -8 -7 ------- Run | Yrd Mat Min Mat Min Exi Min Mat Fac Combat Hostiles Destroyed 98 | . 8 11 20 12 . 13 28 6 Guns 79 | . 8 9 20 12 . 9 20 1 AOE 19 | . . 2 . . . 4 8 5 Classes Destroyed 14 | 1 6 . 4 2 . . 1 . Worker 3 | . . . 1 . . 1 . 1 Builder 3 | . 1 . 1 . . . 1 . Tunneler 5 | 2 2 . . . . . . 1 Hauler 9 | . 1 . 3 . . . 3 2 Recycler 5 | . 2 . . . . . 2 1 Mechanic 1 | . . . . . . . 1 . Operator 2 | . . . 1 . . . 1 . Watcher 8 | . 2 . 1 . . . 3 2 Swarmer 33 | . 3 9 7 . . 4 4 6 Grunt 49 | . 5 2 8 10 . 8 16 . Brawler 5 | . . . . 1 . 1 3 . Duelist 2 | . . . 1 . . . 1 . Sentry 8 | . . . 4 . . . 4 . Assembled 1 | . . . . 1 . . . . Best Kill Streak 7 | 1 3 4 5 4 . 4 7 4 Combat Bots Only 6 | . 3 4 4 4 . 4 6 3 Max Kills in Single Turn 4 | 1 1 1 2 2 . 4 3 3 Gunslinging 1 | . . . 1 1 . . . . Exploded 4 | . . 1 . . . 4 3 3 Melee . | . . . . . . . . . Uniques/NPCs Destroyed . | . . . . . . . . . Combat | -11 -10 -10 -9 -9 -9 -8 -8 -7 -------- Run | Yrd Mat Min Mat Min Exi Min Mat Fac Hostile Shots Fired 549 | . 67 50 117 43 . 85 141 46 Missed 155 | . 21 9 31 14 . 28 34 18 Hits 394 | . 46 41 86 29 . 57 107 28 Melee 7 | . . . 4 2 . . 1 . Projectile 387 | . 46 41 82 27 . 57 106 28 Critical Strikes 12 | . 1 . 1 1 . 3 6 . Damage Taken 5566 | . 505 400 1178 392 . 915 1774 402 Core 688 | . 99 72 154 22 . 89 211 41 Absorbed by Shields 14 | . . . . . . . . 14 Regen/Repaired (Parts) 102 | . . . 102 . . . . . Core Remaining (%) 56 | 100 . 31 . . . 33 61 . Volleys Fired 399 | 5 87 18 82 25 . 47 100 35 Largest 2 | 2 2 2 2 2 . 2 2 1 Hottest 90 | 60 90 90 90 46 . 46 58 33 Shots Fired 753 | 10 174 34 162 51 . 90 197 35 Gun 741 | 10 174 34 162 51 . 89 191 30 Cannon . | . . . . . . . . . Launcher 12 | . . . . . . 1 6 5 Special . | . . . . . . . . . Kinetic 692 | 5 168 10 148 51 . 89 191 30 Thermal 5 | 5 . . . . . . . . Explosive 12 | . . . . . . 1 6 5 Electromagnetic 44 | . 6 24 14 . . . . . Robot Hit Streak 31 | 1 8 12 24 9 . 10 31 5 Robot Miss Streak 6 | 3 6 2 3 2 . 2 2 4 Penetration Max . | . . . . . . . . . Secondary Targets 18 | . 3 1 4 6 . 1 3 . Max Gunslinging Chain 1 | . 1 1 1 1 . 1 1 . Shots Hit Robots 503 | 4 92 28 115 34 4 63 141 22 Core Hits 245 | 3 37 19 50 18 . 28 74 16 Critical Kills 2 | . 1 . 1 . . . . . Critical Parts Destroyed 3 | . . . . . . 1 2 . Critical Strikes 5 | . 1 . 1 . . 1 2 . Destroy 5 | . 1 . 1 . . 1 2 . Melee Attacks 45 | . . . . . 4 . . 41 Impact 8 | . . . . . . . . 8 Slashing 29 | . . . . . . . . 29 Piercing . | . . . . . . . . . Sneak Attacks 9 | . . . . . 4 . . 5 Combat Hostiles . | . . . . . . . . . Follow-up Attacks . | . . . . . . . . . Damage Inflicted 8879 | 37 808 378 1717 555 . 1200 3090 1094 Guns 6723 | 37 804 295 1570 540 . 923 2295 259 Cannons . | . . . . . . . . . Explosions 1747 | . . 79 115 . . 240 795 518 Melee 317 | . . . . . . . . 317 Ramming 92 | . 4 4 32 15 . 37 . . Kinetic 6237 | 14 750 85 1371 540 . 923 2295 259 Thermal 217 | 23 . 79 115 . . . . . Explosive 1537 | . . . . . . 240 779 518 Electromagnetic 479 | . 54 210 199 . . . 16 . Impact 275 | . . . . . . . . 275 Slashing 42 | . . . . . . . . 42 Piercing . | . . . . . . . . . Highest Corruption 2 | . . . . 2 2 2 1 1 Average Corruption 1 | . . . . 2 2 2 1 1 Corruption Purged . | . . . . . . . . . Corruption Blocked . | . . . . . . . . . Effects 50 | . . . . 8 10 11 18 3 Message Errors 15 | . . . . 2 2 3 7 1 Matter Fused 10 | . . . . 1 3 1 4 1 Heat Flow Errors 6 | . . . . 1 3 . 2 . Energy Discharges 9 | . . . . 2 . 3 4 . Data Loss (minor) 4 | . . . . 1 1 1 . 1 Data Loss (major) 1 | . . . . . 1 . . . Misfires 2 | . . . . 1 . . 1 . Weapon Failures 3 | . . . . . . 3 . . Overload Shots . | . . . . . . . . . Overflow Damage 213 | . . . 18 . . 41 8 146 Projectiles . | . . . . . . . . . Explosions 67 | . . . 18 . . 41 8 . Melee 146 | . . . . . . . . 146 Knockbacks 2 | . . . . . . . . 2 Impact 2 | . . . . . . . . 2 Kinetic . | . . . . . . . . . Secondary . | . . . . . . . . . Self-Inflicted Damage 153 | . . 35 41 . . . 77 . Shots 6 | . . 2 1 . . . 3 . Rammed 10 | . . . 3 2 . 5 . . Targets Rammed 18 | . 1 4 6 2 . 5 . . Kicked 8 | . 1 4 3 . . . . . Crushed . | . . . . . . . . . Highest Temperature 242 | 20 60 120 11 241 240 63 242 13 Average Temperature 39 | 13 17 49 11 103 108 21 46 6 Received Heat Transfer 2241 | . 192 48 369 192 . 513 900 27 Effects 1 | . . . . . . . 1 . Energy Bleed 1 | . . . . . . . 1 . Siege Activations . | . . . . . . . . . Martial Activations . | . . . . . . . . . Shielding Activations . | . . . . . . . . . Robots Disrupted . | . . . . . . . . . Combat Hostiles . | . . . . . . . . . Robots Corrupted 2 | . . . . . . . . 2 Combat Hostiles . | . . . . . . . . . Parts Fried 2 | . . . 1 . . . . 1 Impact Corruptions 5 | . . . . . . . . 5 Robots Melted . | . . . . . . . . . Combat Hostiles . | . . . . . . . . . Parts Melted . | . . . . . . . . . Heat Transferred 300 | 50 . 100 150 . . . . . Parts Sabotaged . | . . . . . . . . . Parts Stolen . | . . . . . . . . . Parts Stripped . | . . . . . . . . . Power Chain Reactions 3 | . . 2 1 . . . . . Alert | -11 -10 -10 -9 -9 -9 -8 -8 -7 ------- Run | Yrd Mat Min Mat Min Exi Min Mat Fac Maximum Alert Level 2 | . . . 1 . . . 2 1 Low Security (%) 67 | 100 100 100 94 100 . 100 38 1 Level 1 13 | . . . 5 . . . 8 98 Level 2 19 | . . . . . . . 53 . Level 3 . | . . . . . . . . . Level 4 . | . . . . . . . . . Level 5 . | . . . . . . . . . High Security . | . . . . . . . . . Max Security . | . . . . . . . . . Peak Influence 599 | 5 64 83 256 144 . 125 599 353 Initial 264 | . . 6 . 94 . . . 264 Average 150 | 1 15 11 55 44 . 33 306 254 Influence Increases 3314 | 10 314 284 568 285 . 330 950 573 Destroy 0b10 Robot/C 1940 | . 160 220 400 220 . 260 560 120 Destroy 0b10 Robot/NC 180 | 10 40 . 35 . . 5 55 35 Destroy Leader 382 | . 36 40 98 20 . 40 122 26 Trap Triggered on 0b10 40 | . . . . . . . . 40 Successful Hack 52 | . 18 . 12 . . . 4 18 Select Force Hacks 120 | . 60 . . . . . 60 . Disable Machine 90 | . . . . . . . 60 30 Destroy Structure 150 | . . 9 8 . . 10 74 49 Partial Spotted 90 | . . . . . . . . 90 Lose Combat Pursuer 270 | . . 15 15 45 . 15 15 165 Influence Decreases 3101 | 10 296 302 324 521 8 330 367 943 Entered New Map 489 | . . 12 . 150 8 . . 319 Time Decay 2311 | 10 296 270 273 361 . 290 317 494 Search Patrol Dispatched 100 | . . . . . . . . 100 Lost Part 191 | . . 20 51 10 . 40 50 20 Lost Ally 10 | . . . . . . . . 10 Squads Dispatched 19 | . 3 . 1 . . . 8 7 Investigation 9 | . 3 . . . . . 3 3 Extermination 3 | . . . . . . . . 3 Reinforcement 4 | . . . 1 . . . 2 1 Assault 3 | . . . . . . . 3 . Garrison . | . . . . . . . . . Intercept . | . . . . . . . . . Searches Triggered 1 | . . . . . . . . 1 Construction Impeded 1 | . . . . . . . 1 . Haulers Reinforced . | . . . . . . . . . Active Scanning Responses . | . . . . . . . . . Cargo Convoy Interrupts 1 | . . . . . . . . 1 Stealth | -11 -10 -10 -9 -9 -9 -8 -8 -7 --------- Run | Yrd Mat Min Mat Min Exi Min Mat Fac Distress Signals 9 | . 1 . 2 . . . 5 1 Communications Jammed . | . . . . . . . . . Distress Signals . | . . . . . . . . . Times Spotted 170 | . 21 12 28 13 . 11 49 36 Peak Tracking Total 9 | . 4 5 5 3 . 6 5 9 Tactical Retreats 14 | . . 1 1 3 . 1 1 7 Traps | -11 -10 -10 -9 -9 -9 -8 -8 -7 ------- Run | Yrd Mat Min Mat Min Exi Min Mat Fac Traps Triggered 4 | . 1 . . . . . 2 1 Indirectly . | . . . . . . . . . Trap Hack Attempts 22 | . . . . . . . . 22 Triggered . | . . . . . . . . . Disarmed . | . . . . . . . . . Reprogrammed 5 | . . . . . . . . 5 Reused 4 | . . . . . . . . 4 Traps Extracted 7 | . . . . . . . . 7 Installed 6 | . . . . . . . . 6 Triggered 4 | . . . . . . . . 4 Most Traps Carried 5 | . . . . . . . . 5 Machines | -11 -10 -10 -9 -9 -9 -8 -8 -7 ---------- Run | Yrd Mat Min Mat Min Exi Min Mat Fac Machines Disabled 6 | . . . . . . . 4 2 Max in Single Turn 2 | . . . . . . . 2 1 Garrison Access 2 | . . . . . . . . 2 Machines Repaired . | . . . . . . . . . Machines Dismantled . | . . . . . . . . . Machines Sabotaged . | . . . . . . . . . Overloaded Fab Kills . | . . . . . . . . . Hacking | -11 -10 -10 -9 -9 -9 -8 -8 -7 --------- Run | Yrd Mat Min Mat Min Exi Min Mat Fac Machines Accessed 35 | . 8 . 4 . 1 . 9 13 Terminals 20 | . 6 . 2 . . . 5 7 Fabricators 3 | . . . . . . . . 3 Repair Stations 1 | . . . 1 . . . . . Recycling Units 4 | . 2 . . . . . 2 . Scanalyzers 4 | . . . 1 . . . 2 1 Garrison Access 2 | . . . . . . . . 2 Total Hacks 71 | . 12 . 10 . 1 . 24 24 Successful 39 | . 7 . 5 . 1 . 11 15 Failed 30 | . 5 . 4 . . . 12 9 Catastrophic 3 | . 1 . . . . . . 2 Database Lockouts 2 | . . . 1 . . . 1 . Manual 50 | . 12 . 5 . . . 18 15 Terminals 42 | . 10 . 5 . . . 13 14 Fabricators 6 | . . . . . . . . 6 Repair Stations 3 | . . . 3 . . . . . Recycling Units 7 | . 2 . . . . . 5 . Scanalyzers 10 | . . . 2 . . . 6 2 Garrison Access 2 | . . . . . . . . 2 Terminal Hacks 4 | . . . . . 1 . 1 2 Record 1 | . . . . . 1 . . . Terminal Index 1 | . . . . . . . . 1 Locate Traps 1 | . . . . . . . . 1 Hauler Manifests 1 | . . . . . . . 1 . Fabricator Hacks 3 | . . . . . . . . 3 Load Schematic 3 | . . . . . . . . 3 Repair Station Hacks 2 | . . . 2 . . . . . Scan Component 1 | . . . 1 . . . . . Repair 1 | . . . 1 . . . . . Recycling Unit Hacks . | . . . . . . . . . Scanalyzer 6 | . . . 1 . . . 3 2 Insert Component 1 | . . . . . . . . 1 Analyze 1 | . . . . . . . . 1 Retrieve Study 4 | . . . 1 . . . 3 . Garrison Access Hacks 2 | . . . . . . . . 2 Seal Access 2 | . . . . . . . . 2 Unauthorized Hacks 22 | . 7 . 2 . . . 7 6 Terminals 15 | . 5 . 2 . . . 5 3 Assimilate 1 | . . . . . . . . 1 Botnet 2 | . . . . . . . . 2 Skim 12 | . 5 . 2 . . . 5 . Fabricators 3 | . . . . . . . . 3 Recompile 3 | . . . . . . . . 3 Repair Stations . | . . . . . . . . . Recycling Units 4 | . 2 . . . . . 2 . Tunnel 4 | . 2 . . . . . 2 . Scanalyzers . | . . . . . . . . . Garrison Access . | . . . . . . . . . Data Cores Recovered . | . . . . . . . . . Used . | . . . . . . . . . Hacking Detections 23 | . 3 . 4 . . . 7 9 Full Trace Events . | . . . . . . . . . Feedback Events . | . . . . . . . . . Feedback Blocked . | . . . . . . . . . Robot Schematics Acquired . | . . . . . . . . . Robots Built . | . . . . . . . . . Authchips . | . . . . . . . . . Time . | . . . . . . . . . Total Robot Build Rating . | . . . . . . . . . Part Schematics Acquired 1 | . . . . . . . . 1 Parts Built . | . . . . . . . . . Authchips . | . . . . . . . . . Time . | . . . . . . . . . Total Part Build Rating . | . . . . . . . . . Part Studies Acquired 4 | . . . 1 . . . 3 . Parts Repaired 1 | . . . 1 . . . . . Time 16 | . . . 16 . . . . . Parts Recycled . | . . . . . . . . . Recycled Matter . | . . . . . . . . . Retrieved Matter . | . . . . . . . . . Retrieved Components . | . . . . . . . . . Parts Scanalyzed 1 | . . . . . . . . 1 Part Schematics Acquired 1 | . . . . . . . . 1 Parts Damaged . | . . . . . . . . . Bothacking | -11 -10 -10 -9 -9 -9 -8 -8 -7 ------------ Run | Yrd Mat Min Mat Min Exi Min Mat Fac Used RIF Installer . | . . . . . . . . . Robots Hacked 7 | . . . . . 4 . . 3 Non-combat 6 | . . . . . 3 . . 3 Combat 1 | . . . . . 1 . . . Robot Hacks Applied 8 | . . . . . 4 . . 4 parse_system 5 | . . . . . 4 . . 1 no_distress 1 | . . . . . . . . 1 find_chute 1 | . . . . . . . . 1 find_fabricator 1 | . . . . . . . . 1 Relay Couplers Released . | . . . . . . . . . Fabnet Peak Effective % . | . . . . . . . . . Robots Rewired . | . . . . . . . . . Allies Hacked . | . . . . . . . . . Hacks Repelled . | . . . . . . . . . Allies | -11 -10 -10 -9 -9 -9 -8 -8 -7 -------- Run | Yrd Mat Min Mat Min Exi Min Mat Fac Total Allies 1 | . . . . . . . . 1 Largest Group 1 | . . . . . . . . 1 Highest-Rated Group 10 | . . . . . . . . 10 Highest-Rated Ally 10 | . . . . . . . . 10 Total Orders . | . . . . . . . . . Ally Attacks . | . . . . . . . . . Total Damage . | . . . . . . . . . Kills . | . . . . . . . . . Allies Corrupted . | . . . . . . . . . Allies Melted . | . . . . . . . . . Intel | -11 -10 -10 -9 -9 -9 -8 -8 -7 ------- Run | Yrd Mat Min Mat Min Exi Min Mat Fac Active Infowar (turns) 6893 | 7 1781 1909 191 . . . 1721 1284 Sensors 1221 | . . . . . . . . 1221 Terrain 1 | . . 1 . . . . . . Seismic 5651 | 7 1781 1908 191 . . . 1721 43 T.N.C. 394 | . . . . . . . . 394 Robot Analysis Total . | . . . . . . . . . Derelict Logs Recovered 4 | . . 2 . 2 . . . . Drone Launches . | . . . . . . . . . Drone Recoveries . | . . . . . . . . . Exploration | -11 -10 -10 -9 -9 -9 -8 -8 -7 ------------- Run | Yrd Mat Min Mat Min Exi Min Mat Fac Turns Passed 13517 | 85 1781 1937 847 1209 762 1012 4566 1318 Spaces Moved 6862 | 49 499 645 283 558 443 514 719 3152 Core 8 | 8 . . . . . . . . Treads 2463 | . . . 229 558 443 514 719 . Legs 1239 | 41 499 645 54 . . . . . Wheels . | . . . . . . . . . Hover . | . . . . . . . . . Flight 3152 | . . . . . . . . 3152 Fastest Speed 27 | 50 120 260 160 160 160 160 160 27 Average Speed 120 | 114 226 287 181 192 166 164 160 27 Slowest Speed 470 | 120 260 470 260 240 240 240 160 103 Overloaded Moves . | . . . . . . . . . Propulsion Burnouts . | . . . . . . . . . Robots Hopped 14 | . . . . . . . . 14 Potential Cave-ins . | . . . . . . . . . Cave-ins Triggered . | . . . . . . . . . Exploration Rate (%) 65 | 3 76 99 25 98 67 99 49 71 Regions Visited 8 Branch Regions 4 Pre-discovered Areas 5 | . 2 . . . 1 . 2 . Known Exits Taken 4 | . 1 1 1 . 1 . . . Unknown Exits Taken 4 | 1 . . . 1 . 1 1 . Scrap Searched 6 | . . 2 . 2 . 2 . . Spaces Dug 33 | . . . . . . . . 33 Terrain Destroyed 139 | . . 9 7 . . 10 67 46 Melee 30 | . . . . . . . . 30 Projectile . | . . . . . . . . . AOE 109 | . . 9 7 . . 10 67 16 Terrain Rammed . | . . . . . . . . . Walls Destroyed . | . . . . . . . . . Machines Disabled . | . . . . . . . . . Actions | -11 -10 -10 -9 -9 -9 -8 -8 -7 --------- Run | Yrd Mat Min Mat Min Exi Min Mat Fac Total 11374 | 65 1007 683 462 640 473 584 3964 3496 Wait 3730 | . 399 1 28 50 . 5 3096 151 Move 6826 | 48 498 644 282 557 442 513 718 3124 Hop 14 | . . . . . . . . 14 Pick Up 76 | 4 12 4 16 . 11 2 9 18 Fast Attach 33 | 7 1 1 6 2 . 4 2 10 Attach 36 | . . 4 10 1 2 1 6 12 Detach 5 | . 1 . 1 . . . . 3 Swap 63 | 1 6 6 13 2 2 4 18 11 Drop 88 | . 2 1 18 1 12 3 15 36 Fire 399 | 5 87 18 82 25 . 47 100 35 Melee 45 | . . . . . 4 . . 41 Ram . | . . . . . . . . . Kick 8 | . 1 4 3 . . . . . Crush 10 | . . . 3 2 . 5 . . Escape Stasis 13 | . . . . . . . . 13 Rewire . | . . . . . . . . . Trap 28 | . . . . . . . . 28 Miscellaneous . | . . . . . . . . . Route ------- -11/Scrapyard -10/Materials (discovered 6 exits: *Mat x3 / *Min x2 / Sub) -10/Mines (discovered 3 exits: *Mat x2 / *Sub) -9/Materials (discovered 3 exits: *Min x2 / Sto) -9/Mines (discovered 3 exits: *Mat x2 / *Exi) -9/Exiles (discovered 2 exits: *Min x2) -8/Mines (discovered 2 exits: *Mat x2) -8/Materials (discovered 2 exits: *Fac x2) -7/Factory (discovered 4 exits: *Fac x4) History --------- Turn | Location | Event 17 | -11/Scrapyard | Discovered new exit (range 15) 86 | -11/Scrapyard | Entered Materials 331 | -10/Materials | Build established: Mutant 338 | -10/Materials | Discovered new exit (range 10) 643 | -10/Materials | Discovered new exit (range 15) 1331 | -10/Materials | Discovered new exit (range 15) 1474 | -10/Materials | Identified exit to Materials 1474 | -10/Materials | Identified exit to Mines 1496 | -10/Materials | Identified exit to Subcaves 1497 | -10/Materials | Loaded intel: 34 machine locations 1503 | -10/Materials | Learned location of 2 exits from Mines 1515 | -10/Materials | Learned 2 Mines zone layouts 1539 | -10/Materials | Learned Storage stockpile data 1867 | -10/Materials | Entered Mines 2134 | -10/Mines | Learned Materials interactive machine intel 2188 | -10/Mines | Discovered exit to Materials (range 6) 2290 | -10/Mines | Core integrity fell below 50% 2332 | -10/Mines | Lost 5 parts (3n2w) 3040 | -10/Mines | Build established: Scavenger-Mutant 3128 | -10/Mines | Received a Rocket Launcher from a helpful Derelict 3804 | -10/Mines | Entered Materials 3804 | -9/Materials | Evolved 2 slots: Propulsion x1, Utility x1 3805 | -9/Materials | Identified exit to Mines 3805 | -9/Materials | Identified exit to Storage 3806 | -9/Materials | Loaded intel: 18 interactive machine locations 4041 | -9/Materials | Lost 5 parts (1p1n3w) 4282 | -9/Materials | Build established: Mutant 4312 | -9/Materials | Central database locked down 4381 | -9/Materials | Repaired Imp. Treads 4651 | -9/Materials | Entered Mines 4816 | -9/Mines | Excavation squad dispatched 4816 | -9/Mines | A large section of the Mines collapsed 4899 | -9/Mines | Discovered new exit (range 9) 5228 | -9/Mines | Learned Materials stockpile data 5427 | -9/Mines | Found a Scrap Suit stashed away for nefarious purposes 5537 | -9/Mines | Discovered new exit (range 9) 5592 | -9/Mines | Learned Materials terminal intel 5595 | -9/Mines | Build established: Scavenger-Mutant 5850 | -9/Mines | Deemed a non-threat by the Exiles lab entrance 5850 | -9/Mines | Discovered new exit (range 5) 5860 | -9/Mines | Entered Exiles 5861 | -9/Exiles | Identified exit to Mines 5900 | -9/Exiles | Met 8R-AWN 5929 | -9/Exiles | Met EX-HEX 6030 | -9/Exiles | Met EX-DEC 6148 | -9/Exiles | Learned location of Zion (-6) 6173 | -9/Exiles | Met EX-BIN 6622 | -9/Exiles | Entered Mines 6689 | -8/Mines | Core integrity fell below 50% 6786 | -8/Mines | Lost 3 parts (1p1n1u) 7199 | -8/Mines | Discovered new exit (range 6) 7325 | -8/Mines | Discovered new exit (range 3) 7634 | -8/Mines | Entered Materials 7634 | -8/Materials | Evolved 2 slots: Propulsion x1, Utility x1 7636 | -8/Materials | Loaded intel: 11 terminal locations 9311 | -8/Materials | Discovered new exit (range 14) 9748 | -8/Materials | Discovered new exit (range 15) 9878 | -8/Materials | Central database locked down 10034 | -8/Materials | First assault squad dispatched 12200 | -8/Materials | Entered Factory 12200 | -7/Factory | Evolved 2 slots: Utility x2 12254 | -7/Factory | Discovered new exit (range 14) 12281 | -7/Factory | Identified exit to Factory 12497 | -7/Factory | Build established: Sprinter 12511 | -7/Factory | Discovered exit to Factory (range 4) 12968 | -7/Factory | Discovered exit to Factory (range 16) 12979 | -7/Factory | Discovered exit to Factory (range 16) 13211 | -7/Factory | Cargo convoy interrupted 13400 | -7/Factory | Search patrols dispatched 13518 | -7/Factory | Self-destructed Last Messages --------------- Uploading Wheel schematic... Loaded successfully: Wheel Rating: 1 Time: 25 Initiate build sequence. >>Force(Recompile) RECOMPILED[Authchip [Propulsion]] 13493_ ALERT: Suspicious activity at Fabricator F004. Dispatching Investigation squad. 13493_ Acquired Authchip [Propulsion]. 13502_ Connecting with Terminal... 13507_ ALERT: Suspicious intruders detected, dispatching Cutter reinforcements to area. 13516_ Cesium-ion Thruster+ destroyed. 13516_ Assembly Bed disabled. 13516_ Cesium-ion Thruster+ destroyed. 13516_ C-30 ARC bursts open, deploying its payload. 13516_ S-27 Virus unfolds itself. Map ----- +----------------------------------------------------+ | ???# #### ## ??????????????# """ "#????? | | #### # [ ## ?########??????# """ "#????? | | # # #?### #?# #??????? """ "#????? | | "" # ##+####### #?# #????????? ??????? | | "" + #?# #???????#+##+#???????? | | "" # ##### #?# #???????# ######### | | # #???# #?#"" #???????# # | | ! # #???# #?#"" #???????# # | | #### #???######### #?#"T ## T ## # """ """ | | ###" #???????????# #?#"" "# "" + """ """ | | # #???????????# #?#"" ## ##### # """ """ | | " # #??????###### ### ## ?????# # | | " # ######## ###+###############+######### | | " # ## ss ^ # ! ######## | | # ## ! gsg # ## | | " # ## + """ """ """ ## """" | | " + ## # """ """ """ ## """" | | " # ## """""" s # """ """ """ ## """" | | # ## """""" #### ## """" | | " # ## """""" #??# """ """ ## """" | | " # ## """""" k#??# """ """ " " ## """" | | " # ## #### """ """ "R" ## """" | | # #" """""" p """ ## | | #### #" """""" # ] ## """" | | # #" """""" ####+########### """" | | # #T """""" @ # """" | | + #" # """" | | ! # #" """""" u + """" | | # #" """"" pk # """" | | # ## """""" # """" | | # """""" ####### # | | # #?????# # | | "" # #?????# ##+#### | | "" # #?????# | | "" # #?????# | | "" # "T" #?????# """ """ "" | | ? # """ #?????# """ """ Y" | | ?### #?????# """ """ "" | | ####"######## #?????# ^ | | ##??????# ########?????# """ """ """ | | """ #???????# #????????????# """ """ """ | | """ #???????# #??????????????? """ """ """ | | """ #???????# #???????????????? | | """ #???????# #?????????????????"??""" """ | | """ #???????# #??????????????????? """ """ | | """ #??###### #?????????????????"" """ """ | | #??# #????????????? | | #??# #?????????????????"" """ """ | | #??# #??????????????????? """ """ | | #??# #?????????????????"" """ """ | +----------------------------------------------------+ Best States ------------- Heat Dissipation 56 Energy Generation 16 Energy Capacity 290 Matter Stores 300 Matter Capacity 300 Sight Range 16 Robot Scan Range 15 Terrain Scan Density 10 Armor Coverage 450 Evasion (%) 64 Melee Accuracy 6 Recoil Reduction 4 Offensive Hacking 20 Authchip Count 4 Trap Extractor Capacity 6 Item Schematics ----------------- Wheel | -7/Factory | Scanalyzed Robot Schematics ------------------ None Fabricated ------------ Nothing Repaired ---------- Imp. Treads | 34% | -9/Materials Studied --------- Grenade Launcher | -9/Materials | Hacked Cesium-ion Thruster | -8/Materials | Hacked Lgt. Treads | -8/Materials | Hacked Lgt. Deuterium Engine | -8/Materials | Hacked Alien Tech Used ----------------- None Achievements -------------- Insider Info Challenges ------------ None Game ------ Seed StealthPlexusCharge Manual? 0 Play Time 01:11:03 Cumulative 433.1 hours Start 2026.02.20 @ 09:05:59 End 2026.02.20 @ 14:30:43 Sessions 1 Manual Loads 0 Difficulty Rogue Special Mode None Game No. 280 Rogue 280 Adventurer 0 Explorer 0 Win Type - Total 29 Types 10/0/9/1/1/0/3/2/2/1 Lore% 84 Gallery% 78 Achievement% 72 Wizard Run 0 Options --------- Layout 1 ASCII 0 Keyboard 0 Movement Mouse Keybinds 0 Fullscreen 2 Font 24/Smallcaps Map View 50x35 Zoom Use 0% Tactical HUD 1 Map Filters NONE Filters NONE Steam 1 RUN: 67f8b5ec-9722-4e0c-8c7f-05478d4c7500